fUSD/lending_fUSD_20250513
["ID","MTS","AMOUNT","RATE_DAILY","PERIOD"]
[360906761,1747135834088,-553.26,0.00012456,2]
[360906762,1747135834097,-529.39,0.00012456,2]
[360906763,1747135834107,-400.0,0.00012456,2]
[360906764,1747135834117,-849.18,0.00012456,2]
[360906765,1747135834127,-400.0,0.00012456,2]
[360906766,1747135834137,-203.15349097,0.00012456,2]
[360906767,1747135834146,-403.24220116,0.00012456,2]
[360906768,1747135834155,-2358.65,0.00012456,2]
[360906769,1747135834165,-400.0,0.00012456,2]
[360906770,1747135834175,-443.58,0.00012456,2]
[360906771,1747135834184,-403.43,0.00012456,2]
[360906772,1747135834193,-4426.54,0.00012456,2]
[360906773,1747135834203,-400.0,0.00012456,2]
[360906774,1747135834213,-340.04430905,0.00012456,2]
[360906775,1747135834224,-556.56,0.00012456,2]
[360906776,1747135834235,-400.0,0.00012456,2]
[360906777,1747135834244,-1024.94,0.00012456,2]
[360906778,1747135834254,-400.0,0.00012456,2]
[360906779,1747135834264,-400.0,0.00012456,2]
[360906780,1747135834274,-400.0,0.00012456,2]
[360906781,1747135834283,-400.0,0.00012456,2]
[360906782,1747135834293,-400.0,0.00012456,2]
[360906783,1747135834302,-400.0,0.00012456,2]
[360906784,1747135834311,-400.0,0.00012456,2]
[360906785,1747135834321,-752.41,0.00012456,2]
[360906786,1747135834331,-1045.66,0.00012456,2]
[360906787,1747135834341,-400.0,0.00012456,2]
[360906788,1747135834351,-400.0,0.00012456,2]
[360906789,1747135834361,-400.0,0.00012456,2]
[360906790,1747135834370,-648.97,0.00012456,2]
[360906791,1747135834380,-400.0,0.00012456,2]
[360906792,1747135834389,-551.5,0.00012456,2]
[360906793,1747135834398,-477.34,0.00012456,2]
[360906794,1747135834408,-459.09,0.00012456,2]
[360906795,1747135834417,-790.24,0.00012456,2]
[360906796,1747135834427,-1266.91,0.00012456,2]
[360906797,1747135834436,-1415.51,0.00012456,2]
[360906798,1747135834445,-400.0,0.00012456,2]
[360906799,1747135834454,-400.0,0.00012456,2]
[360906800,1747135834464,-591.92,0.00012456,2]
[360906801,1747135834473,-2719.83,0.00012456,2]
[360906802,1747135834483,-658.67,0.00012456,2]
[360906803,1747135834492,-431.65,0.00012456,2]
[360906804,1747135834501,-308.87052277,0.00012456,2]
[360906805,1747135834511,-400.0,0.00012456,2]
[360906806,1747135834521,-417.64,0.00012456,2]
[360906807,1747135834534,-400.0,0.00012456,2]
[360906808,1747135834544,-400.0,0.00012456,2]
[360906809,1747135834553,-400.0,0.00012456,2]
[360906810,1747135834562,-400.0,0.00012456,2]
[360906811,1747135834572,-927.64,0.00012456,2]
[360906812,1747135834582,-400.0,0.00012456,2]
[360906813,1747135834593,-400.0,0.00012456,2]
[360906814,1747135834609,-400.0,0.00012456,2]
[360906815,1747135834619,-400.0,0.00012456,2]
[360906816,1747135834628,-400.0,0.00012457,2]
[360906817,1747135834638,-736.6,0.00012457,2]
[360906818,1747135834647,-435.35,0.00012457,2]
[360906819,1747135834656,-542.97,0.00012457,2]
[360906820,1747135834665,-492.79656196,0.00012457,2]
[360906821,1747135834675,-400.0,0.00012457,2]
[360906822,1747135834684,-400.0,0.00012457,2]
[360906823,1747135834694,-400.0,0.00012457,2]
[360906824,1747135834703,-5512.3,0.00012457,2]
[360906825,1747135834713,-400.0,0.00012457,2]
[360906826,1747135834722,-400.0,0.00012457,2]
[360906827,1747135834731,-400.0,0.00012457,2]
[360906828,1747135834741,-400.0,0.00012457,2]
[360906829,1747135834750,-400.0,0.00012457,2]
[360906830,1747135834759,-400.0,0.00012457,2]
[360906831,1747135834768,-400.0,0.00012457,2]
[360906832,1747135834777,-401.08103062,0.00012457,2]
[360906833,1747135834787,-400.0,0.00012457,2]
[360906834,1747135834796,-400.0,0.00012457,2]
[360906835,1747135834805,-528.05,0.00012457,2]
[360906836,1747135834814,-400.0,0.00012457,2]
[360906837,1747135834823,-400.0,0.00012457,2]
[360906838,1747135834833,-400.0,0.00012457,2]
[360906839,1747135834842,-400.0,0.00012457,2]
[360906840,1747135834851,-400.0,0.00012457,2]
[360906841,1747135834861,-400.0,0.00012457,2]
[360906842,1747135834870,-400.0,0.00012457,2]
[360906843,1747135834879,-400.0,0.00012457,2]
[360906844,1747135834888,-400.0,0.00012457,2]
[360906845,1747135834897,-467.49,0.00012457,2]
[360906846,1747135834907,-400.0,0.00012457,2]
[360906847,1747135834916,-400.0,0.00012457,2]
[360906848,1747135834925,-400.0,0.00012457,2]
[360906849,1747135834934,-400.0,0.00012457,2]
[360906850,1747135834943,-400.0,0.00012457,2]
[360906851,1747135834952,-400.0,0.00012457,2]
[360906852,1747135834962,-400.0,0.00012457,2]
[360906853,1747135834971,-593.34,0.00012457,2]
[360906854,1747135834980,-400.0,0.00012457,2]
[360906855,1747135834989,-400.0,0.00012457,2]
[360906856,1747135834998,-762.53,0.00012457,2]
[360906857,1747135835007,-573.98,0.00012457,2]
[360906858,1747135835016,-400.0,0.00012457,2]
[360906859,1747135835025,-2350.32,0.00012457,2]
[360906860,1747135835034,-444.26,0.00012457,2]
[360906861,1747135835042,-400.0,0.00012457,2]
[360906862,1747135835051,-400.0,0.00012457,2]
[360906863,1747135835060,-400.0,0.00012457,2]
[360906864,1747135835070,-446.4,0.00012457,2]
[360906865,1747135835079,-476.75,0.00012457,2]
[360906866,1747135835088,-400.0,0.00012457,2]
[360906867,1747135835098,-2223.97,0.00012457,2]
[360906868,1747135835108,-423.35,0.00012457,2]
[360906869,1747135835117,-400.0,0.00012457,2]
[360906870,1747135835127,-193.87472364,0.00012457,2]
[360906871,1747135835137,-2200.49,0.00012457,2]
[360906872,1747135835147,-400.0,0.00012457,2]
[360906873,1747135835156,-613.72,0.00012457,2]
[360906874,1747135835166,-400.0,0.00012457,2]
[360906875,1747135835175,-105.32051883,0.00012457,2]
[360906876,1747135835189,-294.67948117,0.00012457,2]
[360906877,1747135835198,-49.11607806,0.00012457,2]
[360906879,1747135838068,-414.14,0.00012272,2]
[360906880,1747135838078,-400.0,0.00012456,2]
[360906881,1747135838088,-157.8198939,0.00012456,2]
[360906882,1747135838102,-517.3901061,0.00012456,2]
[360906883,1747135838112,-350.88392194,0.00012457,2]
[360906884,1747135838121,-160.95343075,0.00012457,2]
[360906885,1747135838235,-400.0,0.00012456,2]
[360906886,1747135838245,-239.04656925,0.00012457,2]
[360906887,1747135838255,-400.0,0.00012457,2]
[360906888,1747135838265,-1231.39,0.00012457,2]
[360906889,1747135838274,-400.0,0.00012457,2]
[360906890,1747135838284,-34.12343075,0.00012457,2]
[360906934,1747135840239,-2229.1,0.00012456,2]
[360906935,1747135840249,-1129.00656925,0.00012457,2]
[360906936,1747135840259,-400.0,0.00012457,2]
[360906937,1747135840269,-1392.61,0.00012457,2]
[360906938,1747135840278,-488.11,0.00012457,2]
[360906939,1747135840287,-400.0,0.00012457,2]
[360906940,1747135840296,-400.0,0.00012457,2]
[360906941,1747135840305,-400.0,0.00012457,2]
[360906942,1747135840314,-400.0,0.00012457,2]
[360906943,1747135840324,-918.96,0.00012457,2]
[360906944,1747135840333,-400.0,0.00012457,2]
[360906945,1747135840343,-400.0,0.00012457,2]
[360906946,1747135840353,-400.0,0.00012457,2]
[360906947,1747135840363,-400.0,0.00012457,2]
[360906948,1747135840373,-400.0,0.00012457,2]
[360906949,1747135840383,-400.0,0.00012457,2]
[360906950,1747135840392,-400.0,0.00012457,2]
[360906951,1747135840402,-816.28,0.00012457,2]
[360906952,1747135840412,-670.47,0.00012457,2]
[360906953,1747135840422,-400.0,0.00012457,2]
[360906954,1747135840431,-240.01530076,0.00012457,2]
[360906955,1747135840619,-1106.77482122,0.00012208,2]
[360906956,1747135840628,-2374.95784988,0.00012457,2]
[360906957,1747135840657,-709.09684936,0.00012457,2]
[360906958,1747135840667,-400.0,0.00012457,2]
[360906959,1747135840677,-165.74363564,0.00012457,2]
[360906960,1747135840696,-272.27636436,0.00012457,2]
[360906961,1747135840705,-363.76614704,0.00012457,2]
[360906962,1747135840716,-464.03396,0.00012457,2]
[360906963,1747135840729,-696.07989296,0.00012457,2]
[360906964,1747135840738,-400.0,0.00012457,2]
[360906965,1747135840748,-400.0,0.00012457,2]
[360906966,1747135840757,-400.0,0.00012457,2]
[360906967,1747135840766,-400.0,0.00012457,2]
[360906968,1747135840776,-400.0,0.00012457,2]
[360906969,1747135840786,-794.47,0.00012457,2]
[360906971,1747135840795,-400.0,0.00012457,2]
[360906973,1747135840804,-400.0,0.00012457,2]
[360906974,1747135840813,-1897.69,0.00012457,2]
[360906975,1747135840823,-2314.54,0.00012457,2]
[360906976,1747135840832,-1201.21,0.00012457,2]
[360906977,1747135840842,-415.3,0.00012457,2]
[360906978,1747135840852,-500.0,0.00012457,2]
[360906979,1747135840861,-927.15,0.00012457,2]
[360906980,1747135840871,-400.0,0.00012457,2]
[360906981,1747135840880,-606.54,0.00012457,2]
[360906982,1747135840889,-658.99,0.00012457,2]
[360906983,1747135840899,-195.21337276,0.00012457,2]
[360906984,1747135840908,-400.0,0.00012457,2]
[360906985,1747135840918,-996.72,0.00012457,2]
[360906986,1747135840927,-706.08,0.00012457,2]
[360906987,1747135840937,-513.57,0.00012457,2]
[360906988,1747135840946,-1443.18,0.00012457,2]
[360906989,1747135840956,-400.0,0.00012457,2]
[360906990,1747135840965,-400.0,0.00012457,2]
[360906991,1747135840974,-400.0,0.00012457,2]
[360906992,1747135840984,-1407.09,0.00012457,2]
[360906993,1747135840993,-4880.16125168,0.00012457,2]
[360906994,1747135841031,-788.7241764,0.00012457,2]
[360907007,1747135846142,-438.76,0.0001208,2]
[360907008,1747135846151,-109.08176427,0.0001208,2]
[360907009,1747135846181,-253.52,0.0001208,2]
[360907010,1747135846192,-265.39823573,0.0001208,2]
[360907011,1747135846202,-400.0,0.00012272,2]
[360907012,1747135846211,-400.0,0.00012272,2]
[360907013,1747135846220,-520.35,0.00012456,2]
[360907014,1747135846230,-255.64304407,0.00012456,2]
[360907015,1747135846239,-400.0,0.00012456,2]
[360907016,1747135846248,-1489.44213309,0.00012456,2]
[360907017,1747135846260,-3793.17786691,0.00012456,2]
[360907018,1747135846269,-417.21,0.00012456,2]
[360907019,1747135846278,-11874.05123312,0.00012457,2]
[360907020,1747135846289,-2597.90981342,0.00012457,2]
[360907021,1747135846300,-2329.55927372,0.00012457,2]
[360907022,1747135846320,-40474.29425166,0.00012457,2]
[360907023,1747135846330,-400.0,0.00012457,2]
[360907024,1747135846340,-454.86,0.00012457,2]
[360907025,1747135846349,-705.43,0.00012457,2]
[360907026,1747135846360,-400.0,0.00012457,2]
[360907027,1747135846370,-822.83,0.00012457,2]
[360907028,1747135846381,-400.0,0.00012457,2]
[360907029,1747135846390,-400.0,0.00012457,2]
[360907030,1747135846400,-466.8,0.00012457,2]
[360907031,1747135846410,-400.0,0.00012458,2]
[360907032,1747135846420,-400.0,0.00012458,2]
[360907033,1747135846430,-400.0,0.00012458,2]
[360907034,1747135846440,-400.0,0.00012458,2]
[360907035,1747135846449,-400.0,0.00012458,2]
[360907036,1747135846459,-400.0,0.00012458,2]
[360907037,1747135846468,-400.0,0.00012458,2]
[360907038,1747135846477,-500.0,0.00012458,2]
[360907039,1747135846487,-400.0,0.00012458,2]
[360907040,1747135846497,-400.0,0.00012458,2]
[360907041,1747135846506,-400.0,0.00012458,2]
[360907042,1747135846516,-400.0,0.00012458,2]
[360907043,1747135846527,-400.0,0.00012458,2]
[360907044,1747135846539,-400.0,0.00012458,2]
[360907045,1747135846549,-400.0,0.00012458,2]
[360907046,1747135846558,-447.17,0.00012458,2]
[360907047,1747135846569,-400.0,0.00012458,2]
[360907048,1747135846578,-312.098547,0.00012458,2]
[360907049,1747135846588,-400.0,0.00012458,2]
[360907050,1747135846598,-400.0,0.00012458,2]
[360907051,1747135846609,-400.0,0.00012458,2]
[360907052,1747135846620,-400.0,0.00012458,2]
[360907053,1747135846630,-400.0,0.00012458,2]
[360907055,1747135846640,-400.0,0.00012458,2]
[360907057,1747135846650,-400.0,0.00012458,2]
[360907059,1747135846660,-1033.15,0.00012458,2]
[360907061,1747135846669,-400.0,0.00012458,2]
[360907063,1747135846679,-504.46,0.00012458,2]
[360907065,1747135846688,-657.64,0.00012458,2]
[360907067,1747135846698,-400.0,0.00012458,2]
[360907069,1747135846707,-400.0,0.00012458,2]
[360907070,1747135846715,-798.28,0.00012458,2]
[360907071,1747135846725,-401.07,0.00012458,2]
[360907072,1747135846734,-496.04,0.00012458,2]
[360907073,1747135846743,-400.0,0.00012458,2]
[360907074,1747135846752,-400.0,0.00012458,2]
[360907075,1747135846761,-400.0,0.00012458,2]
[360907076,1747135846770,-1780.38,0.00012458,2]
[360907077,1747135846780,-1531.93,0.00012458,2]
[360907078,1747135846789,-549.96,0.00012458,2]
[360907079,1747135846798,-400.0,0.00012458,2]
[360907080,1747135846807,-400.0,0.00012458,2]
[360907081,1747135846816,-1188.59,0.00012458,2]
[360907082,1747135846825,-2163.85,0.00012458,2]
[360907083,1747135846834,-199.35029148,0.00012458,2]
[360907084,1747135846843,-746.61,0.00012458,2]
[360907085,1747135846853,-1324.52,0.00012458,2]
[360907086,1747135846862,-751.19,0.00012458,2]
[360907087,1747135846871,-400.0,0.00012458,2]
[360907088,1747135846879,-157.1793793,0.00012467,2]
[360907089,1747135846888,-505.76806015,0.00012525,2]
[360907090,1747135846898,-400.0,0.00012525,2]
[360907091,1747135846911,-400.0,0.00012525,2]
[360907092,1747135846920,-400.0,0.00012525,2]
[360907093,1747135846929,-492.26,0.00012525,2]
[360907094,1747135846938,-460.86,0.00012525,2]
[360907095,1747135846947,-400.0,0.00012525,2]
[360907096,1747135846956,-400.0,0.00012525,2]
[360907097,1747135846965,-400.79,0.00012525,2]
[360907099,1747135846975,-400.0,0.00012525,2]
[360907101,1747135846984,-563.57,0.00012525,2]
[360907103,1747135846994,-734.08,0.00012525,2]
[360907105,1747135847003,-400.0,0.00012525,2]
[360907107,1747135847012,-400.0,0.00012525,2]
[360907109,1747135847022,-757.44,0.00012525,2]
[360907111,1747135847032,-400.0,0.00012525,2]
[360907113,1747135847041,-400.0,0.00012525,2]
[360907115,1747135847054,-400.0,0.00012525,2]
[360907117,1747135847063,-400.0,0.00012525,2]
[360907119,1747135847073,-400.0,0.00012525,2]
[360907121,1747135847084,-400.0,0.00012525,2]
[360907123,1747135847093,-738.45,0.00012525,2]
[360907125,1747135847103,-400.0,0.00012525,2]
[360907127,1747135847112,-400.0,0.00012525,2]
[360907129,1747135847121,-547.95,0.00012525,2]
[360907131,1747135847130,-2433.76,0.00012525,2]
[360907133,1747135847139,-400.0,0.00012525,2]
[360907135,1747135847149,-400.0,0.00012525,2]
[360907137,1747135847158,-529.63493423,0.00012525,2]
[360907139,1747135847167,-527.97,0.00012525,2]
[360907141,1747135847176,-1108.51,0.00012525,2]
[360907143,1747135847185,-400.0,0.00012525,2]
[360907145,1747135847194,-1984.47,0.00012525,2]
[360907147,1747135847203,-5849.88,0.00012525,2]
[360907148,1747135847214,-1000.0,0.00012525,2]
[360907150,1747135847223,-400.0,0.00012525,2]
[360907152,1747135847232,-400.0,0.00012525,2]
[360907154,1747135847242,-1217.3,0.00012525,2]
[360907156,1747135847251,-599.92,0.00012525,2]
[360907158,1747135847260,-1118.76,0.00012525,2]
[360907160,1747135847269,-400.0,0.00012525,2]
[360907162,1747135847278,-209.72410305,0.00012525,2]
[360907165,1747135847290,-190.27589695,0.00012525,2]
[360907167,1747135847299,-193.88739305,0.00012525,2]
[360907169,1747135847310,-1218.40535053,0.00012525,2]
[360907171,1747135847327,-620.1702649,0.00012525,2]
[360907176,1747135847356,-1862.49699152,0.00012525,2]
[360907178,1747135847366,-1265.4,0.00012525,2]
[360907180,1747135847375,-400.0,0.00012526,2]
[360907182,1747135847385,-400.0,0.00012526,2]
[360907184,1747135847394,-66.87703136,0.00012526,2]
[360907186,1747135847405,-333.12296864,0.00012526,2]
[360907188,1747135847414,-400.0,0.00012526,2]
[360907190,1747135847423,-400.0,0.00012526,2]
[360907192,1747135847433,-400.0,0.00012526,2]
[360907194,1747135847442,-400.0,0.00012526,2]
[360907196,1747135847451,-400.0,0.00012526,2]
[360907198,1747135847460,-278.82617436,0.00012526,2]
[360907200,1747135847471,-228.79382564,0.00012526,2]
[360907202,1747135847479,-400.0,0.00012526,2]
[360907204,1747135847488,-201.3492382,0.00012526,2]
[360907345,1747136083939,1000.0,0.00011657,2]
[360907346,1747136298079,1465.22086813,0.00011627,2]
[360907347,1747136298294,10000.0,0.00011627,2]
[360907348,1747136298317,10000.0,0.00011627,2]
[360907349,1747136298338,2434.77913187,0.00011627,2]
[360907350,1747136639094,169.35,0.0001149,2]
[360907351,1747136652379,402.8,0.00011485,2]
[360907352,1747136665718,166.69,0.0001183,2]
[360907353,1747136744761,6826.38086813,0.00011516,2]
[360907354,1747136744784,3173.61913187,0.00011516,2]
[360907355,1747136792161,200.0,0.00011499,2]
[360907455,1747137032303,-390.68129792,0.00011898,2]
[360907456,1747137032313,-207.4,0.00011904,2]
[360907457,1747137032322,-1200.0,0.00011904,2]
[360907458,1747137032331,-300.0,0.00011904,2]
[360907459,1747137032341,-300.0,0.00011904,2]
[360907460,1747137032350,-500.0,0.00011905,2]
[360907461,1747137032359,-500.0,0.00011905,2]
[360907462,1747137032369,-339.20016585,0.00011905,2]
[360907463,1747137032381,-160.79983415,0.00011905,2]
[360907464,1747137032391,-500.0,0.00011905,2]
[360907465,1747137032400,-59.24016585,0.00011905,2]
[360907466,1747137032415,-440.75983415,0.00011905,2]
[360907467,1747137032425,-500.0,0.00011905,2]
[360907468,1747137032434,-500.0,0.00011905,2]
[360907469,1747137032444,-500.0,0.00011905,2]
[360907470,1747137032453,-385.67848091,0.00011905,2]
[360907471,1747137032475,-114.32151909,0.00011905,2]
[360907472,1747137032484,-500.0,0.00011905,2]
[360907473,1747137032494,-470.22212651,0.00011905,2]
[360907474,1747137032529,-29.77787349,0.00011905,2]
[360907475,1747137032539,-500.0,0.00011905,2]
[360907476,1747137032549,-500.0,0.00011905,2]
[360907477,1747137032558,-500.0,0.00011905,2]
[360907478,1747137032567,-500.0,0.00011905,2]
[360907479,1747137032577,-500.0,0.00011905,2]
[360907480,1747137032587,-500.0,0.00011905,2]
[360907481,1747137032596,-500.0,0.00011905,2]
[360907482,1747137032605,-500.0,0.00011905,2]
[360907484,1747137032614,-500.0,0.00011905,2]
[360907486,1747137032624,-500.0,0.00011905,2]
[360907488,1747137032633,-500.0,0.00011905,2]
[360907490,1747137032642,-500.0,0.00011905,2]
[360907492,1747137032651,-500.0,0.00011905,2]
[360907494,1747137032662,-500.0,0.00011905,2]
[360907495,1747137032671,-500.0,0.00011905,2]
[360907497,1747137032681,-500.0,0.00011905,2]
[360907500,1747137032690,-500.0,0.00011905,2]
[360907502,1747137032699,-500.0,0.00011905,2]
[360907505,1747137032708,-500.0,0.00011905,2]
[360907508,1747137032717,-500.0,0.00011905,2]
[360907511,1747137032726,-500.0,0.00011905,2]
[360907514,1747137032736,-500.0,0.00011905,2]
[360907517,1747137032745,-500.0,0.00011905,2]
[360907520,1747137032754,-500.0,0.00011905,2]
[360907523,1747137032763,-500.0,0.00011905,2]
[360907526,1747137032772,-500.0,0.00011905,2]
[360907529,1747137032783,-500.0,0.00011905,2]
[360907532,1747137032792,-500.0,0.00011905,2]
[360907535,1747137032801,-500.0,0.00011905,2]
[360907538,1747137032810,-500.0,0.00011905,2]
[360907541,1747137032819,-500.0,0.00011905,2]
[360907544,1747137032829,-500.0,0.00011905,2]
[360907546,1747137032838,-500.0,0.00011905,2]
[360907548,1747137032847,-504.73575537,0.00011905,2]
[360907550,1747137032856,-504.73575537,0.00011905,2]
[360907552,1747137032866,-504.73575537,0.00011905,2]
[360907554,1747137032876,-504.73575537,0.00011905,2]
[360907556,1747137032886,-504.73575537,0.00011905,2]
[360907558,1747137032896,-504.73575537,0.00011905,2]
[360907560,1747137032908,-504.73575537,0.00011905,2]
[360907562,1747137032918,-504.73575537,0.00011905,2]
[360907563,1747137032928,-504.73575537,0.00011905,2]
[360907564,1747137032937,-504.73575537,0.00011905,2]
[360907565,1747137032947,-504.73575537,0.00011905,2]
[360907566,1747137032956,-504.73575537,0.00011905,2]
[360907567,1747137032965,-504.73575537,0.00011905,2]
[360907568,1747137032974,-504.73575537,0.00011905,2]
[360907569,1747137032984,-504.73575537,0.00011905,2]
[360907570,1747137032993,-504.73575537,0.00011905,2]
[360907571,1747137033002,-504.73575537,0.00011905,2]
[360907572,1747137033011,-504.73575537,0.00011905,2]
[360907573,1747137033020,-504.73575537,0.00011905,2]
[360907574,1747137033030,-504.73575537,0.00011905,2]
[360907575,1747137033039,-504.73575537,0.00011905,2]
[360907576,1747137033050,-504.73575537,0.00011905,2]
[360907577,1747137033059,-504.73575537,0.00011905,2]
[360907578,1747137033069,-504.73575537,0.00011905,2]
[360907579,1747137033078,-504.73575537,0.00011905,2]
[360907580,1747137033089,-504.73575537,0.00011905,2]
[360907581,1747137033099,-504.73575537,0.00011905,2]
[360907582,1747137033108,-504.73575537,0.00011905,2]
[360907583,1747137033118,-504.73575537,0.00011905,2]
[360907584,1747137033128,-504.73575537,0.00011905,2]
[360907585,1747137033139,-504.73575537,0.00011905,2]
[360907586,1747137033149,-504.73575537,0.00011905,2]
[360907587,1747137033158,-504.73575537,0.00011905,2]
[360907588,1747137033168,-504.73575537,0.00011905,2]
[360907589,1747137033177,-504.73575533,0.00011905,2]
[360907590,1747137033187,-200.0,0.00011906,2]
[360907591,1747137033196,-250.0,0.00011906,2]
[360907592,1747137033206,-521.98346639,0.00011907,2]
[360907593,1747137033216,-521.98346639,0.00011907,2]
[360907594,1747137033225,-521.98346639,0.00011907,2]
[360907595,1747137033235,-521.98346639,0.00011907,2]
[360907596,1747137033245,-521.98346639,0.00011907,2]
[360907597,1747137033254,-521.98346639,0.00011907,2]
[360907598,1747137033263,-521.98346639,0.00011907,2]
[360907599,1747137033273,-200.0,0.00011909,2]
[360907600,1747137033282,-200.0,0.000121,2]
[360907601,1747137033293,-798.0,0.00012133,2]
[360907602,1747137033302,-391.825,0.00012133,2]
[360907603,1747137033311,-918.0,0.00012133,2]
[360907604,1747137033320,-373.122,0.00012275,2]
[360907605,1747137033329,-15282.03685291,0.00012355,2]
[360907606,1747137033339,-1417.0861,0.00012355,2]
[360907607,1747137033349,-240.98,0.00012355,2]
[360907608,1747137033359,-270.5876,0.00012355,2]
[360907609,1747137033368,-1930.9418,0.00012355,2]
[360907610,1747137033378,-1311.6301,0.00012356,2]
[360907611,1747137033388,-406.9346,0.00012356,2]
[360907612,1747137033398,-283.6895,0.00012356,2]
[360907613,1747137033410,-450.283,0.00012356,2]
[360907614,1747137033420,-5745.0743,0.00012356,2]
[360907615,1747137033430,-1369.52,0.00012356,2]
[360907616,1747137033440,-168.49075731,0.00012356,2]
[360907617,1747137033449,-12348.97791467,0.00012356,2]
[360907618,1747137033460,-383.35504611,0.00012356,2]
[360907619,1747137033470,-14208.818,0.00012357,2]
[360907620,1747137033480,-941.699,0.00012445,2]
[360907621,1747137033489,-178.56,0.00012445,2]
[360907622,1747137033499,-178.56,0.00012445,2]
[360907623,1747137033509,-178.56,0.00012445,2]
[360907624,1747137033520,-178.56,0.00012445,2]
[360907625,1747137033534,-178.56,0.00012445,2]
[360907626,1747137033544,-178.56,0.00012445,2]
[360907627,1747137033554,-178.56,0.00012446,2]
[360907628,1747137033564,-178.56,0.00012446,2]
[360907629,1747137033574,-244.37285167,0.00012449,2]
[360907630,1747137033584,-668.65185757,0.00012449,2]
[360907631,1747137033594,-190.265651,0.00012449,2]
[360907632,1747137033603,-498.66,0.00012455,2]
[360907633,1747137033614,-400.0,0.00012455,2]
[360907634,1747137033623,-400.0,0.00012455,2]
[360907635,1747137033633,-400.0,0.00012455,2]
[360907636,1747137033645,-400.0,0.00012455,2]
[360907637,1747137033656,-400.0,0.00012455,2]
[360907638,1747137033668,-400.0,0.00012455,2]
[360907639,1747137033679,-400.0,0.00012455,2]
[360907640,1747137033689,-400.0,0.00012455,2]
[360907641,1747137033699,-400.0,0.00012455,2]
[360907642,1747137033709,-5062.51,0.00012455,2]
[360907643,1747137033719,-400.0,0.00012455,2]
[360907644,1747137033728,-400.0,0.00012455,2]
[360907645,1747137033738,-400.0,0.00012455,2]
[360907646,1747137033747,-400.0,0.00012455,2]
[360907647,1747137033757,-400.0,0.00012455,2]
[360907648,1747137033767,-400.0,0.00012455,2]
[360907649,1747137033777,-400.0,0.00012455,2]
[360907650,1747137033786,-416.86,0.00012455,2]
[360907651,1747137033795,-448.02,0.00012455,2]
[360907652,1747137033804,-400.0,0.00012455,2]
[360907653,1747137033814,-153.990612,0.00012455,2]
[360907654,1747137033823,-400.0,0.00012455,2]
[360907655,1747137033833,-400.0,0.00012455,2]
[360907656,1747137033843,-4711.125419,0.00012455,2]
[360907657,1747137033852,-601.466163,0.00012455,2]
[360907658,1747137033862,-400.0,0.00012455,2]
[360907659,1747137033871,-409.68821544,0.00012455,2]
[360907660,1747137033881,-400.0,0.00012455,2]
[360907661,1747137033892,-400.0,0.00012455,2]
[360907662,1747137033902,-400.0,0.00012455,2]
[360907663,1747137033912,-400.0,0.00012455,2]
[360907664,1747137033922,-400.0,0.00012455,2]
[360907665,1747137033932,-946.404263,0.00012455,2]
[360907666,1747137033942,-730.76,0.00012455,2]
[360907667,1747137033952,-400.0,0.00012455,2]